[Event "Romanian Team Blitz Open 2022"]
[Site "Sebes"]
[Date "2022.12.04"]
[Round "2.16"]
[White "Ciorgovean, Iustin"]
[Black "Duma, Ioan-Gheorghe"]
[Result "1-0"]
[ECO "C11"]
[WhiteElo "2319"]
[BlackElo "1782"]
[Annotator "TA"]
[PlyCount "50"]
[EventDate "2022.12.04"]
[EventType "blitz"]
[EventCountry "ROU"]
[SourceTitle "playchess.com"]
[Source "ChessBase"]
[SourceQuality "1"]
[TimeControl "180+2"]

{[%evp 10,50,0,0,101,31,258,119,204,214,265,143,160,114,191,101,122,105,144,159,170,148,157,127,200,137,153,170,297,301,322,151,255,228,315,284,283,279,281,271,278,260,333]} 1. e4 {[%emt 0:00:02]} e6 {[%emt 0:00:01]} 2. d4 {[%emt 0:00:01]} d5 {[%emt 0:00:01]} 3. Nc3 {[%emt 0:00:01]} Nf6 {[%emt 0:00:02]} 4. e5 {[%emt 0:00:01]} Nfd7 {[%emt 0:00:01]} 5. f4 {[%emt 0:00:00]} c5 {[%emt 0:00:00]} 6. Nf3 {[%emt 0:00:01]} f6 {[%emt 0:00:01] C11: French: Classical System: 4 e5 and 4 Bg5 dxe4.} (6... Nc6 $11 {remains equal.}) 7. exf6 {[%emt 0:00:16] [#] White is more active.} ({White should try} 7. f5 $16 cxd4 8. Nxd4 Nxe5 9. Qh5+ (9. Nxe6 Bxe6 10. fxe6 d4 $15) (9. fxe6 Nbc6 $11) 9... Ke7 10. fxe6 Bxe6 11. Bf4) 7... gxf6 $146 {[%emt 0:00:13]} (7... Nxf6 $14 8. Be3 cxd4 9. Nxd4 Nc6) ({Predecessor:} 7... Nxf6 8. Be3 cxd4 9. Nxd4 Nc6 10. Qd2 Bb4 11. Bd3 Qc7 12. O-O-O Bd7 13. Rhe1 O-O-O 14. a3 {½-½ (37) Novak,K (2107)-Ocepek,M (2101) Slovenia 2016}) 8. Be3 {[%emt 0:00:06]} (8. f5 $18 {and White stays clearly on top.} Qb6 9. Be2) 8... c4 {[%emt 0:00:06]} (8... f5 $16) 9. f5 $18 {[%emt 0:00:17][%cal Of3g5]} Nb6 {[%emt 0:00:02]} 10. fxe6 {[%emt 0:00:04]} (10. a4 $18) 10... Bxe6 $16 {[%emt 0:00:01] [#]} 11. Be2 {[%emt 0:00:05]} ({Better is} 11. Nh4 $1) 11... Nc6 {[%emt 0:00:04] [#]} (11... Bg7 $16 {might work better.}) 12. O-O {[%emt 0:00:04]} (12. Nh4 $1 $18) 12... Qe7 {[%emt 0:00:42]} 13. Qd2 {[%emt 0:00:04]} h5 {[%emt 0:00:02]} 14. Nh4 {[%emt 0:00:08]} Qg7 {[%emt 0:00:34] Prevents Ng6.} 15. Rae1 {[%emt 0:00:17]} O-O-O {[%emt 0:00:03]} 16. Kh1 {[%emt 0:00:14]} Rg8 {[%emt 0:00:15]} (16... Bb4 $16) 17. Nd1 {[%emt 0:00:21]} Bd6 {[%emt 0:00:18][%cal Od6h2]} 18. Bf4 {[%emt 0:00:09]} Bb4 {[%emt 0:00:04]} (18... Bxf4 $142 19. Qxf4 Qg5) 19. c3 $18 {[%emt 0:00:01]} Be7 {[%emt 0:00:01]} 20. g3 {[%emt 0:00:21]} (20. Bxh5 $18 {has better winning chances.} Qh7 21. Rxe6 Qxh5 22. Bg3) 20... Bg4 {[%emt 0:00:06]} (20... Bh3 $16 {keeps fighting.} 21. Nf2 Bxf1 22. Bxf1 Rde8 23. Bh3+ Kd8) 21. Ne3 {[%emt 0:00:03] Black must now prevent Nxg4.} Qh7 {[%emt 0:00:42]} 22. Bxg4+ {[%emt 0:00:21] White has a decisive advantage.} hxg4 {[%emt 0:00:05]} 23. Nef5 {[%emt 0:00:03]} Bf8 {[%emt 0:00:07]} 24. Qe2 {[%emt 0:00:03]} Rd7 {[%emt 0:00:16]} 25. Qe6 {[%emt 0:00:10]} Nd8 {[%emt 0:00:05] Weighted Error Value: White=0.37/Black=0.61} 1-0

[Event "Romanian Team Blitz Open 2022"]
[Site "Sebes"]
[Date "2022.12.04"]
[Round "2.17"]
[White "Patrascu, Catalin-Lucian"]
[Black "Stefan, Romulus-Cristian"]
[Result "1-0"]
[ECO "B08"]
[WhiteElo "2279"]
[BlackElo "2097"]
[Annotator "TA"]
[PlyCount "47"]
[EventDate "2022.12.04"]
[EventType "blitz"]
[EventCountry "ROU"]
[SourceTitle "playchess.com"]
[Source "ChessBase"]
[SourceQuality "1"]
[TimeControl "180+2"]

{[%evp 14,47,37,31,28,23,52,53,59,0,55,39,91,23,16,26,69,70,66,58,46,42,100,84,142,138,148,125,185,106,225,221,606,636,593,580]} 1. e4 {[%emt 0:00:01]} d6 {[%emt 0:00:02]} 2. d4 {[%emt 0:00:02]} Nf6 {[%emt 0:00:01]} 3. Nc3 {[%emt 0:00:01]} g6 {[%emt 0:00:05]} 4. Nf3 {[%emt 0:00:02]} Bg7 {[%emt 0:00:01]} 5. Be2 {[%emt 0:00:01][%cal Bf1e2,Be2f3,Bf3g2][%mdl 32]} O-O {[%emt 0:00:02]} 6. O-O {[%emt 0:00:02]} Bg4 {[%emt 0:00:02]} 7. Re1 {[%emt 0:00:05]} Nc6 {[%emt 0:00:02][%cal Bb8c6,Bc6d4,Bd4e2][%mdl 32]} 8. Be3 {[%emt 0:00:05]} e5 {[%emt 0:00:03] B08: Pirc Defence: Classical System.} 9. d5 {[%emt 0:00:02]} Bxf3 {[%emt 0:00:04]} 10. Bxf3 {[%emt 0:00:01] [#]} Nd4 $146 {[%emt 0:00:00] White is slightly better.} ({Predecessor:} 10... Ne7 11. Qd2 Kh8 12. Rad1 Neg8 13. h3 a6 14. a4 Rb8 15. Na2 Qe8 16. b3 Ne7 {½-½ (44) Thiessen,K (1894)-Bock,R (1226) Eckernfoerde 2007}) 11. g3 {[%emt 0:00:44]} (11. Bxd4 $14 exd4 12. Qxd4) 11... Nd7 {[%emt 0:00:09]} (11... Nxf3+ $11 12. Qxf3 Nd7) 12. Bg2 $14 {[%emt 0:00:03]} a5 {[%emt 0:00:03]} (12... f5 $14) 13. Ne2 {[%emt 0:00:10]} (13. Nb1 $16) 13... Nxe2+ $1 $11 {[%emt 0:00:25]} 14. Qxe2 {[%emt 0:00:01]} a4 {[%emt 0:00:03]} 15. b4 {[%emt 0:00:17] White is more active.} f5 {[%emt 0:00:11]} 16. f3 {[%emt 0:00:08]} f4 {[%emt 0:00:09]} 17. Bf2 {[%emt 0:00:05]} a3 {[%emt 0:00:26]} ({Black should try} 17... Nf6 $14) 18. c4 $16 {[%emt 0:00:03][%cal Bc2c4,Bc4c5][%mdl 32]} Ra4 {[%emt 0:00:07]} ({Black should play} 18... Nf6) 19. Rab1 {[%emt 0:00:03]} Nf6 {[%emt 0:00:12]} 20. g4 {[%emt 0:00:36]} Nd7 {[%emt 0:00:10]} (20... b6 $16 {was necessary.}) 21. Rec1 {[%emt 0:00:04]} (21. c5 $18) 21... Bf6 {[%emt 0:00:08]} (21... b6 $16) 22. c5 $18 {[%emt 0:00:10]} Bh4 $2 {[%emt 0:00:01] [#]} (22... b6 23. Qb5 Ra7 24. cxd6 cxd6) 23. Bxh4 {[%emt 0:00:03]} Qxh4 {[%emt 0:00:02]} 24. Qb5 {[%emt 0:00:01][%csl LRa4,LRb7,LRd7] Weighted Error Value: White=0.19 (very precise) /Black=0.57} 1-0

[Event "Romanian Team Blitz Open 2022"]
[Site "Sebes"]
[Date "2022.12.04"]
[Round "2.18"]
[White "Arion, Ilie"]
[Black "Creanga, Robert-Ionut"]
[Result "1-0"]
[ECO "A08"]
[WhiteElo "1924"]
[BlackElo "2190"]
[Annotator "TA"]
[PlyCount "88"]
[EventDate "2022.12.04"]
[EventType "blitz"]
[EventCountry "ROU"]
[SourceTitle "playchess.com"]
[Source "ChessBase"]
[SourceQuality "1"]
[TimeControl "180+2"]

{[%evp 12,88,-24,-29,-21,-21,-27,-45,-27,-35,-34,-43,-39,-56,10,-61,-34,-38,-29,-52,-47,-56,-54,-114,79,-35,-52,-155,-128,-136,-129,-172,-103,-197,-167,-135,-78,-74,-52,-168,-138,-124,-124,-381,-191,-287,-65,-535,-357,-335,-279,-252,-20,-22,-31,-148,-152,-222,-152,-222,-222,-349,-297,-296,-29,-35,29981,29981,29990,2115,29991,3587,29986,3035,29985,29986,29998,29999,29999]} 1. g3 {[%emt 0:00:01]} c5 {[%emt 0:00:04]} 2. Bg2 {[%emt 0:00:02]} Nc6 {[%emt 0:00:03]} 3. d3 {[%emt 0:00:01]} d5 {[%emt 0:00:02]} 4. Nf3 {[%emt 0:00:02]} e5 {[%emt 0:00:09]} 5. O-O {[%emt 0:00:02]} Bd6 {[%emt 0:00:05]} 6. e4 {[%emt 0:00:02]} d4 {[%emt 0:00:06]} 7. Nbd2 {[%emt 0:00:01]} Nge7 {[%emt 0:00:07] A08: King's Indian Attack.} 8. Nc4 {[%emt 0:00:01]} Bc7 {[%emt 0:00:02]} 9. a4 {[%emt 0:00:01]} O-O {[%emt 0:00:05] Black is slightly better.} 10. Ne1 {[%emt 0:00:01]} Be6 {[%emt 0:00:10]} 11. b3 $1 {[%emt 0:00:01] [#]} a6 $146 {[%emt 0:00:02]} ({Predecessor:} 11... Rb8 12. f4 f5 13. fxe5 fxe4 14. Rxf8+ Qxf8 15. Bxe4 Nxe5 16. Nxe5 Bxe5 17. Qe2 Nf5 {½-½ (58) Sheynina,Y-Seidemann,U (2090) Germany 1996}) 12. f4 {[%emt 0:00:10]} b5 {[%emt 0:00:09] Against f5} (12... exf4 $15 13. Bxf4 f6) 13. Nd2 {[%emt 0:00:21]} (13. axb5 $11 axb5 14. Rxa8 Qxa8 15. f5) 13... f6 {[%emt 0:00:07]} 14. f5 {[%emt 0:00:01]} Bf7 {[%emt 0:00:02]} 15. g4 {[%emt 0:00:04][%cal Og4g5]} Ba5 {[%emt 0:00:10]} 16. Nef3 {[%emt 0:00:14]} Bc3 {[%emt 0:00:11]} 17. Rb1 {[%emt 0:00:07]} (17. Ra3 $15) 17... g5 $2 {[%emt 0:00:10]} (17... Nb4 $17 18. g5 Nec6 19. gxf6 gxf6) 18. fxg6 {[%emt 0:00:16]} ({White should play} 18. h4 $1 $16 {[%cal Rh4g5]}) 18... Nxg6 $15 {[%emt 0:00:05]} (18... hxg6 19. g5 f5 20. exf5 Nxf5 21. Ne4 $14) 19. Bb2 {[%emt 0:00:06]} (19. axb5 $15 axb5 20. Rf2) 19... Nf4 {[%emt 0:00:05]} 20. Rf2 {[%emt 0:00:05]} Be6 {[%emt 0:00:03]} 21. h3 {[%emt 0:00:02]} Kh8 {[%emt 0:00:09]} (21... h5 $1 $19 {[%cal Rh5g4]} 22. Nh4 hxg4) 22. Bxc3 {[%emt 0:00:02]} (22. axb5 $17 axb5 23. Bc1) 22... dxc3 $19 {[%emt 0:00:01]} 23. Nf1 {[%emt 0:00:02]} Nd4 {[%emt 0:00:04]} (23... h5 $142 24. gxh5 Rg8) 24. Ng3 $17 {[%emt 0:00:15]} Rg8 {[%emt 0:00:04][%cal Oh7h5]} 25. Nh4 {[%emt 0:00:10] Inhibits h5.} (25. Nxd4 $15 cxd4 26. Ra1) 25... Rb8 {[%emt 0:00:09]} 26. axb5 {[%emt 0:00:02]} axb5 {[%emt 0:00:03]} 27. Qe1 $2 {[%emt 0:00:05][%mdl 8192] [#]} (27. Qf1 $17) 27... b4 {[%emt 0:00:06]} (27... Bxg4 $142 $1 {[%mdl 512]} 28. hxg4 Rxg4) 28. Nhf5 {[%emt 0:00:09] [#]} (28. Qf1 {was worth a try.}) 28... Ra8 $2 {[%emt 0:00:07]} (28... Nxb3 $1 $19 {[%mdl 512] And now ...Nd2 would win.} 29. Ne2 (29. cxb3 $2 Nxd3 30. Qe2 Nxf2 $19) 29... Nxe2+ 30. Rxe2 Nd4 31. Nxd4 exd4) 29. Ra1 $2 {[%emt 0:00:08][%mdl 8192]} (29. Nxd4 $1 $15 cxd4 30. Ne2) 29... Rxa1 {[%emt 0:00:05]} 30. Qxa1 {[%emt 0:00:01]} Qa8 {[%emt 0:00:02]} 31. Qb1 {[%emt 0:00:01] [#]} Qa3 $2 {[%emt 0:00:13]} (31... Nxc2 $1 $19 {[%mdl 512]} 32. Rxc2 (32. Qxc2 $2 Qa3 $19) 32... Qa3) 32. Nxd4 $1 $11 {[%emt 0:00:05]} cxd4 {[%emt 0:01:06]} 33. Ne2 {[%emt 0:00:05]} (33. Qf1 $1 $15) 33... Nxe2+ $17 34. Rxe2 {[%emt 0:00:01]} Ra8 {[%emt 0:00:00] aiming for ...Qb2.} 35. Qf1 {[%emt 0:00:04]} (35. Re1 $17) 35... Kg7 $19 {[%emt 0:00:00]} 36. Rf2 {[%emt 0:00:08]} (36. Kh2 $142) 36... Qb2 {[%emt 0:00:00]} ({Weaker is} 36... Rf8 37. g5 $16) 37. Kh2 {[%emt 0:00:09] [#]} (37. Rxf6 $2 {too greedy.} Ra1 38. Rxe6 Rxf1+ 39. Bxf1 Qxc2 40. Re7+ Kf6 $19) 37... Ra1 $2 {[%emt 0:00:00]} ({Better is} 37... Qa1 $1 $19 {Threatens to win with ...Ra2.} 38. g5 (38. Rxf6 $2 {is the wrong capture.} Qxf1 39. Rxf1 Bxb3 $19) 38... fxg5) 38. Qe2 $11 {White wants to mate with Qf3.} h6 $2 {[%emt 0:00:12][%mdl 8192]} (38... Qc1 $15 39. Rf1 Qa3) 39. Qf3 {[%emt 0:01:12]} f5 {[%emt 0:00:00]} 40. gxf5 {[%emt 0:00:00]} (40. exf5 $142 e4 41. Qxe4 Qc1 42. fxe6 Qg1+ 43. Kg3 Qxf2+ 44. Kxf2 Kf6 45. Qf5+ Ke7 46. Qf7+ Kd6 47. e7) 40... Bxb3 {[%emt 0:00:01]} 41. cxb3 {[%emt 0:00:00]} (41. f6+ $142 Kf8 42. Qg4 Ra7 43. Qc8+ Kf7 44. Bf3 Kxf6 45. Bh5+ Ke7 46. Qc5+ Kd8 47. Qd6+ Kc8 48. Rf8+ Kb7 49. Rb8#) 41... Qxb3 {[%emt 0:00:01]} 42. Qg4+ {[%emt 0:00:00]} (42. f6+ $142 Kf8 43. Qf5 Qf7 44. Qxe5 Kg8 45. Qb8+ Qf8 46. f7+ Kg7 47. Qg3+ Kh7 48. e5) 42... Kf8 {[%emt 0:00:02]} 43. f6 {[%emt 0:00:08]} Ra2 {[%emt 0:00:03]} 44. Qg7+ {[%emt 0:00:00]} Ke8 {[%emt 0:00:05] What a bad dream for Black.   Weighted Error Value: White=0.50/Black=1.11} 1-0

[Event "Romanian Team Blitz Open 2022"]
[Site "Sebes"]
[Date "2022.12.04"]
[Round "2.19"]
[White "Butolo, Alexandru-Mircea"]
[Black "Craciun, Ovidiu"]
[Result "1-0"]
[ECO "C45"]
[WhiteElo "2043"]
[BlackElo "1857"]
[Annotator "TA"]
[PlyCount "113"]
[EventDate "2022.12.04"]
[EventType "blitz"]
[EventCountry "ROU"]
[SourceTitle "playchess.com"]
[Source "ChessBase"]
[SourceQuality "1"]
[TimeControl "180+2"]

{[%evp 14,113,-4,-6,-9,-31,-19,-25,533,531,534,524,526,521,526,501,500,497,558,521,647,656,1097,1101,964,836,963,946,962,956,908,917,1188,621,1009,868,821,804,1126,1106,3403,2921,29994,2007,1871,1676,1697,1601,1129,862,855,834,853,846,839,822,860,835,986,1003,1110,1111,1069,1068,1522,1499,1381,1221,29976,29977,29974,2122,29980,29981,29980,29980,29980,29981,29982,29973,29983,29974,29973,29970,29972,29968,29980,29981,29982,29980,29979,29979,29978,29976,29981,29979,29984,29985,29983,29982,29986,29987]} 1. e4 {[%emt 0:00:01]} e5 {[%emt 0:00:01]} 2. Nf3 {[%emt 0:00:02]} Nc6 {[%emt 0:00:01]} 3. d4 {[%emt 0:00:02]} exd4 {[%emt 0:00:02]} 4. Nxd4 {[%emt 0:00:01]} Nf6 {[%emt 0:00:01]} 5. Nxc6 {[%emt 0:00:02]} bxc6 {[%emt 0:00:01]} 6. e5 {[%emt 0:00:02]} Qe7 {[%emt 0:00:02]} 7. Qe2 {[%emt 0:00:01]} Nd5 {[%emt 0:00:01]} 8. h4 {[%emt 0:00:01][%cal Bh2h4,Bh4h5][%mdl 32]} (8. c4 $5 {[%cal Rc4d5]} Nb6 9. b3 $11) 8... Qe6 {[%emt 0:00:21] C45: Scotch Game.} 9. g3 {[%emt 0:00:33]} (9. Nd2 {simplifies} d6 10. Nf3 dxe5 11. Qxe5 Qxe5+ 12. Nxe5 Nb4 13. Bd3) 9... Bc5 {[%emt 0:00:02]} (9... d6 {simplifies} 10. c4 Nb6 11. Bf4 dxe5 12. Qxe5 Bb4+) 10. Bh3 {[%emt 0:00:10] [#]} Qg6 $146 {[%emt 0:00:18][%mdl 8192] [#]} (10... f5 $11 {and Black stays safe.}) ({Predecessor:} 10... Qe7 11. Nd2 O-O 12. O-O d6 13. Bg2 dxe5 14. Nb3 Bb6 15. c4 Ba6 16. Qc2 Nb4 17. Qc3 Rad8 18. c5 Nd5 19. Qc2 Nb4 {½-½ (19) Doric,N (2444)-Kazmin,A (2422) ICCF email 2020}) 11. h5 $1 $18 {[%emt 0:00:13]} Ba6 {[%emt 0:00:55]} 12. hxg6 {[%emt 0:00:19]} (12. Qxa6 $2 {is the wrong capture.} Qe4+ 13. Qe2 Qxh1+ 14. Qf1 Qh2 $19) 12... Bxe2 {[%emt 0:00:02]} 13. gxf7+ {[%emt 0:00:12]} Kxf7 {[%emt 0:00:01]} 14. Kxe2 {[%emt 0:00:03]} d6 {[%emt 0:00:14]} 15. e6+ {[%emt 0:00:03]} Kg6 {[%emt 0:00:12]} 16. Nc3 {[%emt 0:00:16]} Nb4 {[%emt 0:00:04]} 17. f4 {[%emt 0:00:02][%cal Bf2f4,Bf4f5][%mdl 32] Strongly threatening f5+.} Nxc2 {[%emt 0:00:07]} 18. f5+ {[%emt 0:00:01]} Kf6 {[%emt 0:00:04]} 19. Ne4+ {[%emt 0:00:02]} Ke7 {[%emt 0:00:01]} 20. Bg5+ {[%emt 0:00:02]} Ke8 {[%emt 0:00:05]} 21. Rac1 {[%emt 0:00:16]} Nd4+ {[%emt 0:00:01]} 22. Kd3 {[%emt 0:00:05]} Bb6 {[%emt 0:00:01]} 23. Be3 {[%emt 0:00:07]} c5 {[%emt 0:00:04]} 24. Bxd4 {[%emt 0:00:02]} cxd4 {[%emt 0:00:01]} 25. f6 {[%emt 0:00:12]} gxf6 {[%emt 0:00:16]} 26. Nxf6+ {[%emt 0:00:02]} Ke7 {[%emt 0:00:01]} 27. Nd5+ {[%emt 0:00:01]} Kf8 {[%emt 0:00:32]} 28. e7+ {[%emt 0:00:06]} (28. Rcf1+ $142 Kg7 29. Rf7+ Kg6 30. Bf5+ Kg5 31. Rg7+ Kxf5 32. Rh5+ Kxe6 33. Re7#) 28... Kg7 {[%emt 0:00:01]} 29. Nxb6 {[%emt 0:00:05]} axb6 {[%emt 0:00:09]} 30. Bd7 {[%emt 0:00:02]} c5 {[%emt 0:00:04]} 31. e8=Q {[%emt 0:00:03]} Rhxe8 {[%emt 0:00:01]} 32. Bxe8 {[%emt 0:00:02]} Rxe8 {[%emt 0:00:01]} 33. Rce1 {[%emt 0:00:03]} Ra8 {[%emt 0:00:06]} 34. a3 {[%emt 0:00:01]} Rf8 {[%emt 0:00:07]} 35. Re7+ {[%emt 0:00:04]} Kg6 {[%emt 0:00:02]} 36. Re6+ {[%emt 0:00:04]} Kg5 {[%emt 0:00:01]} 37. Rxd6 {[%emt 0:00:05]} Rf3+ {[%emt 0:00:00]} 38. Kc4 {[%emt 0:00:01]} Rxg3 {[%emt 0:00:04]} 39. Rxb6 {[%emt 0:00:51]} h5 40. Rb8 {[%emt 0:00:00] White threatens Rg8+ and mate.} Kf4 {[%emt 0:00:06]} 41. Rf8+ {[%emt 0:00:00]} Ke3 {[%emt 0:00:00]} 42. Re8+ {[%emt 0:00:00]} (42. Rxh5 $142 d3 43. Kxc5 Rg2 44. Rh3+ Ke2 45. Re8+ Kf1 46. Rh1+ Kf2 47. Rd1 Rg5+ 48. Kc4) 42... Kd2 {[%emt 0:00:01]} 43. Rxh5 {[%emt 0:00:00] White mates.} Rg2 {[%emt 0:00:03]} 44. Kxc5 {[%emt 0:00:00]} d3 {[%emt 0:00:01]} 45. b4 {[%emt 0:00:00]} Kc3 {[%emt 0:00:02]} 46. Re3 {[%emt 0:00:00]} Kc2 {[%emt 0:00:02] [#]} 47. Rxd3 $3 {[%emt 0:00:00]} Kxd3 {[%emt 0:00:01] KR-KR} 48. Kb5 {[%emt 0:00:00]} Kd4 {[%emt 0:00:01]} 49. Rc5 {[%emt 0:00:00]} Ra2 {[%emt 0:00:02]} 50. a4 {[%emt 0:00:00][%cal Ba3a4,Ba4a5][%mdl 32]} Ra3 {[%emt 0:00:01]} 51. Rc8 {[%emt 0:00:00]} Rh3 {[%emt 0:00:02]} 52. Kb6 {[%emt 0:00:00]} Rh6+ {[%emt 0:00:00]} 53. Rc6 {[%emt 0:00:00]} Rh7 {[%emt 0:00:01]} 54. b5 {[%emt 0:00:00]} Kd5 {[%emt 0:00:01]} 55. a5 {[%emt 0:00:32]} Rh8 {[%emt 0:00:01]} 56. Rc7 {[%emt 0:00:00]} Rh6+ {[%emt 0:00:01]} 57. Kb7 {[%emt 0:00:00] Black did not feel at home in the position after the opening.   Weighted Error Value: White=0.09 (flawless) /Black=1.02} 1-0

[Event "Romanian Team Blitz Open 2022"]
[Site "Sebes"]
[Date "2022.12.04"]
[Round "2.20"]
[White "Stefan, Iulia-Cristiana"]
[Black "Prelipcean, Eric-Matei"]
[Result "0-1"]
[ECO "B23"]
[WhiteElo "1662"]
[BlackElo "1909"]
[Annotator "TA"]
[PlyCount "81"]
[EventDate "2022.12.04"]
[EventType "blitz"]
[EventCountry "ROU"]
[SourceTitle "playchess.com"]
[Source "ChessBase"]
[SourceQuality "1"]
[TimeControl "180+2"]

{[%evp 9,81,22,27,16,18,19,14,24,67,70,142,141,327,66,49,56,55,-63,-43,-90,-90,-120,0,0,36,43,97,82,80,31,36,-12,0,-20,72,-31,0,-9,-10,-12,0,-20,0,-52,-45,-39,-35,-64,-48,-45,-19,-43,-39,-54,-36,-41,-30,-27,-32,-44,19,0,49,64,72,27,13,0,0,-32,-29,-28,-36,-39]} 1. e4 {[%emt 0:00:03]} c5 {[%emt 0:00:00]} 2. Nc3 {[%emt 0:00:01]} a6 {[%emt 0:00:01]} 3. g3 {[%emt 0:00:01]} b5 {[%emt 0:00:01]} 4. Bg2 {[%emt 0:00:01]} Bb7 {[%emt 0:00:01]} 5. d3 {[%emt 0:00:01]} g6 {[%emt 0:00:01]} 6. Nh3 {[%emt 0:00:01] B23: Closed Sicilian: Lines without g3.} Bg7 {[%emt 0:00:01]} 7. O-O {[%emt 0:00:03]} e6 {[%emt 0:00:01]} 8. f4 {[%emt 0:00:10] The position is equal.} Ne7 {[%emt 0:00:01]} 9. f5 {[%emt 0:00:18]} gxf5 {[%emt 0:00:19]} (9... Bd4+ $14 10. Kh1 Nbc6) 10. Qh5 $16 {[%emt 0:00:06] [#] aiming for Ng5.} Nbc6 $146 {[%emt 0:00:31] [#]} (10... Qb6 $16 {might work better.}) ({Predecessor:} 10... b4 11. exf5 Bd4+ 12. Kh1 Bxg2+ 13. Kxg2 Nxf5 14. Rxf5 exf5 15. Bg5 Qb6 16. Re1+ Kf8 {1-0 (30) Selbes,T (2260)-Jankowiak,T (2169) Szklarska Poreba 2021}) 11. Bh6 $2 {[%emt 0:00:18]} (11. Ng5 Bd4+ 12. Kh1 Ne5 $16) ({White has to play} 11. exf5 $1 $18 Nxf5 12. g4 (12. Rxf5 exf5 13. Bg5 Qc7 $16)) 11... Bxh6 $14 {[%emt 0:00:13]} 12. Qxh6 {[%emt 0:00:02] Strongly threatening Ng5.} Qb6 {[%emt 0:00:03]} 13. Kh1 {[%emt 0:00:04]} (13. Ng5 $14) 13... O-O-O $15 {[%emt 0:00:04]} 14. Ng5 {[%emt 0:00:36] [#]} (14. exf5 $15 Nd4 15. fxe6 Bxg2+ 16. Kxg2 fxe6 17. Qd2) 14... Ne5 $1 $17 {[%emt 0:00:40]} 15. Rae1 {[%emt 0:00:25]} (15. Nxh7 $2 Rdg8 16. h3 fxe4 17. dxe4 N7c6 $19) 15... Ng4 {[%emt 0:00:27] Against Qf6} (15... Rdf8 $17 16. Qf6 N7g6) 16. Qh5 $11 {[%emt 0:00:06]} c4 {[%emt 0:00:08]} 17. Nxf7 {[%emt 0:00:06]} Nf2+ {[%emt 0:00:02] [#]} (17... cxd3 $1 $14 18. Qg5 (18. Nxd8 Kxd8 19. cxd3 Nf2+ 20. Rxf2 Qxf2 $11) 18... Nf2+ 19. Rxf2 Qxf2) 18. Rxf2 $1 $16 {[%emt 0:00:03]} Qxf2 {[%emt 0:00:01]} 19. Re2 {[%emt 0:00:05]} (19. Nd6+ $16 Kb8 20. Rf1) 19... Qd4 {[%emt 0:00:08][%cal Ob5b4]} 20. Nxd8 {[%emt 0:00:07]} (20. Qg5 $14 {is superior.} cxd3 21. cxd3) 20... cxd3 {[%emt 0:00:04]} 21. cxd3 {[%emt 0:00:01] Nxb7 is the strong threat.} (21. Nxb7 $5 dxe2 22. Qxe2 $11) 21... Rxd8 {[%emt 0:00:01]} (21... Kxd8 $11 22. exf5 Bxg2+ 23. Kxg2 Nxf5) 22. Rd2 {[%emt 0:00:21]} (22. Qxh7 $16 Qd6 23. a3) 22... Qg7 {[%emt 0:00:06]} 23. Rc2 {[%emt 0:00:04]} Kb8 {[%emt 0:00:01]} 24. Qf3 {[%emt 0:00:04]} fxe4 {[%emt 0:00:04]} 25. dxe4 {[%emt 0:00:05]} (25. Nxe4 $5 Qd4 26. h3 $11) 25... Nc6 {[%emt 0:00:04][%cal Be7c6,Bc6e5,Be5c4][%mdl 32]} 26. Qe3 {[%emt 0:00:04]} (26. Ne2 $11) 26... Qd4 $1 $15 {[%emt 0:00:07]} 27. Qe2 {[%emt 0:00:04]} Qb6 {[%emt 0:00:04]} 28. a3 {[%emt 0:00:04]} Ka7 {[%emt 0:00:05] And now ...Nd4 would win.} 29. Rd2 {[%emt 0:00:02]} d6 {[%emt 0:00:02]} 30. h3 {[%emt 0:00:02]} Ne5 {[%emt 0:00:03]} 31. Nd1 {[%emt 0:00:06]} Nc4 {[%emt 0:00:03]} 32. Rd3 {[%emt 0:00:03]} Qc5 {[%emt 0:00:10]} 33. b4 {[%emt 0:00:05]} Qg5 {[%emt 0:00:05]} 34. Kh2 {[%emt 0:00:02]} d5 {[%emt 0:00:10]} ({Black should try} 34... Ka8 $15) 35. Qf2+ {[%emt 0:00:03]} Ka8 {[%emt 0:00:02] Active counter play!} (35... Kb8 $1 $11) 36. exd5 $14 {[%emt 0:00:05]} Bxd5 {[%emt 0:00:01]} 37. Bxd5+ {[%emt 0:00:03]} exd5 {[%emt 0:00:01]} 38. Qg2 {[%emt 0:00:07]} Kb8 {[%emt 0:00:03]} 39. Nc3 {[%emt 0:00:05]} d4 {[%emt 0:00:07]} ({Don't do} 39... Nxa3 40. Rxd5 (40. Nxd5 Nc4 $11) 40... Rxd5 41. Nxd5 $11 (41. Qxd5 Qxd5 42. Nxd5 Kb7 $15)) 40. Ne4 {[%emt 0:00:01]} Qd5 {[%emt 0:00:01] White must now prevent ...Ne5.} 41. Nc5 {[%emt 0:00:05] Weighted Error Value: White=0.30/Black=0.27 (precise)} 0-1